bitfinex/quotes_BTCUSD_20241117
["timestamp","ask_amount","ask_price","bid_price","bid_amount"]
[1731825910556,0.110173,90766.0,90763.0,0.16524829]
[1731825910757,0.110171,90768.0,90760.0,0.14765022]
[1731825910974,0.110171,90768.0,90764.0,0.0038328]
[1731825911197,0.110171,90768.0,90760.0,0.14765022]
[1731825911432,0.110171,90768.0,90758.0,0.27543129]
[1731825911433,0.110172,90767.0,90766.0,0.09843296]
[1731825911641,0.110172,90767.0,90766.0,0.12365253]
[1731825911836,0.110172,90767.0,90766.0,0.12748537]
[1731825912263,0.110172,90767.0,90766.0,0.02905241]
[1731825912978,0.110172,90767.0,90766.0,0.029051]
[1731825913159,0.110172,90767.0,90766.0,0.12749074]
[1731825913520,0.190372,90767.0,90766.0,0.02905092]
[1731825913607,0.190372,90767.0,90766.0,0.04481233]
[1731825914681,0.236672,90767.0,90766.0,0.04481233]
[1731825915469,0.236672,90767.0,90766.0,0.04097949]
[1731825916318,0.2375278,90767.0,90766.0,0.02126798]
[1731825917219,0.2375278,90767.0,90766.0,0.01575942]
[1731825917682,0.2375278,90767.0,90766.0,0.01959159]
[1731825918601,0.2375278,90767.0,90766.0,0.01575942]
[1731825919528,0.2375278,90767.0,90766.0,0.01575851]
[1731825920070,0.34659035,90767.0,90766.0,0.00344292]
[1731825920352,0.34659035,90767.0,90756.0,0.0017116]
[1731825920353,0.110184,90757.0,90756.0,0.0017116]
[1731825920494,0.330546,90759.0,90758.0,0.16524829]
[1731825920729,0.410746,90759.0,90758.0,0.01575987]
[1731825920961,0.457046,90759.0,90758.0,0.01575987]
[1731825922587,0.449046,90759.0,90758.0,0.01575987]
[1731825923742,0.449046,90759.0,90758.0,0.01231646]
[1731825923914,0.449046,90759.0,90758.0,0.01575978]
[1731825924440,0.449046,90759.0,90758.0,0.00344332]
[1731825924617,0.449046,90759.0,90758.0,0.01558346]
[1731825926260,0.449046,90759.0,90758.0,0.02109284]
[1731825926481,0.449046,90759.0,90758.0,0.01558346]
[1731825927728,0.449046,90759.0,90758.0,0.02109284]
[1731825927966,0.449046,90759.0,90758.0,1.81558346]
[1731825928419,0.449046,90759.0,90758.0,1.82494782]
[1731825928654,0.449046,90759.0,90758.0,1.82665942]
[1731825928887,0.449046,90759.0,90758.0,1.82114998]
[1731825928888,0.55810855,90759.0,90758.0,1.82114998]
[1731825929199,0.56010855,90759.0,90758.0,1.81770666]
[1731825929357,0.56510855,90759.0,90758.0,1.80901006]
[1731825929714,0.56310855,90759.0,90758.0,1.80556652]
[1731825929875,0.56510855,90759.0,90758.0,1.80556652]
[1731825932997,1.21000855,90759.0,90758.0,1.80556652]
[1731825933003,1.21500855,90759.0,90758.0,1.69538152]
[1731825933222,1.21300855,90759.0,90758.0,1.69538152]
[1731825933438,1.21300855,90759.0,90758.0,1.60723352]
[1731825933439,1.31186732,90759.0,90758.0,1.60723352]
[1731825933693,1.21500855,90759.0,90758.0,1.58519652]
[1731825934563,1.23800855,90759.0,90758.0,1.43987621]
[1731825934830,1.3151769,90759.0,90758.0,1.43987621]
[1731825937227,1.3071769,90759.0,90758.0,1.43987621]
[1731825940335,1.3080327,90759.0,90758.0,1.41783921]
[1731825941039,1.3080327,90759.0,90758.0,1.32969121]
[1731825941281,1.3080327,90759.0,90758.0,1.30765421]
[1731825941509,1.3080327,90759.0,90758.0,1.19746921]
[1731825942415,1.3080327,90759.0,90758.0,1.15339521]
[1731825942694,1.3080327,90759.0,90758.0,1.08728421]
[1731825942940,1.38358229,90759.0,90758.0,1.08680228]
[1731825943611,1.38358229,90759.0,90758.0,1.02069128]
[1731825943841,1.38358229,90759.0,90758.0,0.99865428]
[1731825944071,1.38358229,90759.0,90758.0,0.97661728]
[1731825944527,1.38358229,90759.0,90758.0,0.86643228]
[1731825945432,1.38358229,90759.0,90758.0,0.82235828]
[1731825945658,1.38358229,90759.0,90758.0,0.75624728]
[1731825946595,1.38358229,90759.0,90758.0,0.64606228]
[1731825946823,1.49948229,90759.0,90758.0,0.64606228]
[1731825947036,1.53630023,90759.0,90758.0,0.60186156]
[1731825947262,1.49064484,90759.0,90758.0,0.60186156]
[1731825947488,1.49064484,90759.0,90758.0,0.55778756]
[1731825947489,1.53630023,90759.0,90758.0,0.55778756]
[1731825947713,1.53630023,90759.0,90758.0,0.49167656]
[1731825947941,1.38358229,90759.0,90758.0,0.49167656]
[1731825948168,1.53630023,90759.0,90758.0,0.46852221]
[1731825948383,1.53630023,90759.0,90741.0,0.001712]
[1731825948384,0.353102,90742.0,90741.0,0.001712]
[1731825948591,0.61488249,90742.0,90741.0,0.001712]
[1731825949682,1.15478249,90742.0,90741.0,0.001712]
[1731825949921,1.15978249,90742.0,90741.0,0.001712]
[1731825952254,1.18736632,90742.0,90741.0,0.001712]
[1731825952957,0.110238,90713.0,90705.0,0.110246]
[1731825953172,0.110214,90732.0,90731.0,0.16524829]
[1731825953390,0.110214,90732.0,90697.0,0.243514]
[1731825953391,0.27931084,90732.0,90701.0,0.220503]
[1731825953633,0.11023,90719.0,90718.0,0.16524829]
[1731825953882,0.10906255,90719.0,90698.0,0.1]
[1731825954094,0.10906255,90719.0,90710.0,0.16524829]
[1731825954324,0.110238,90713.0,90711.0,0.0155604]
[1731825954565,0.220467,90717.0,90712.0,0.0155604]
[1731825954812,0.220467,90717.0,90701.0,0.220504]
[1731825954813,0.220467,90717.0,90713.0,0.00344497]
[1731825955028,0.220467,90717.0,90704.0,0.02490193]
[1731825955257,0.11024,90711.0,90705.0,0.02107408]
[1731825955472,0.11024,90711.0,90706.0,0.02107408]
[1731825955683,0.11024,90711.0,90707.0,0.01556207]
[1731825955911,0.11024,90711.0,90706.0,0.00551201]
[1731825955912,0.11024,90711.0,90708.0,0.01556207]
[1731825956138,0.10906255,90719.0,90708.0,0.01556207]
[1731825956139,0.220468,90716.0,90709.0,0.1156]
[1731825956385,0.11024,90711.0,90710.0,0.01556212]
[1731825956614,0.11024,90711.0,90710.0,0.01934216]
[1731825957297,0.220436,90729.0,90711.0,0.0496]
[1731825957536,0.110233,90717.0,90712.0,0.01556212]
[1731825957758,0.110233,90717.0,90713.0,0.01556212]
[1731825957964,0.110233,90717.0,90714.0,0.01556212]
[1731825958174,0.16524829,90722.0,90715.0,0.01556212]
[1731825958175,0.220461,90719.0,90715.0,0.01556212]
[1731825958399,0.110234,90716.0,90715.0,0.00377855]
[1731825958617,0.110234,90716.0,90715.0,0.01936205]
[1731825958854,0.110234,90716.0,90715.0,0.01558349]
[1731825959064,0.110234,90716.0,90715.0,0.01936167]
[1731825959316,0.110234,90716.0,90715.0,0.01558349]
[1731825959525,0.110233,90717.0,90715.0,0.01558349]
[1731825959743,0.110233,90717.0,90716.0,0.01558349]
[1731825960195,0.110232,90718.0,90716.0,0.01936167]
[1731825960403,0.110232,90718.0,90717.0,0.01558349]
[1731825961047,0.110232,90718.0,90717.0,0.01936167]
[1731825961518,0.110232,90718.0,90717.0,0.0072231]
[1731825961752,0.110232,90718.0,90717.0,0.01937497]
[1731825962180,0.110232,90718.0,90717.0,0.01559679]
[1731825962395,0.26779455,90718.0,90717.0,0.01559679]
[1731825964363,0.26779455,90718.0,90717.0,0.00344492]
[1731825965508,0.26779455,90718.0,90717.0,0.01560304]
[1731825965985,0.26779455,90718.0,90717.0,0.00344492]
[1731825967321,0.25979455,90718.0,90717.0,0.00344492]
[1731825968269,0.110235,90715.0,90714.0,0.0008562]
[1731825968479,0.21929755,90715.0,90714.0,0.0008562]
[1731825968690,0.21929755,90715.0,90714.0,0.00430153]
[1731825969189,0.29939755,90715.0,90714.0,0.00430153]
[1731825971383,0.30439755,90715.0,90714.0,0.0008562]
[1731825971598,0.30439755,90715.0,90714.0,0.00430173]
[1731825972741,0.30439755,90715.0,90714.0,0.0008562]
[1731825973200,0.35199755,90715.0,90714.0,0.0008562]
[1731825973443,0.45199755,90715.0,90714.0,0.0008562]
[1731825974120,0.99689755,90715.0,90714.0,0.0008562]
[1731825979210,0.99889755,90715.0,90714.0,0.0008562]
[1731825981058,1.00389755,90715.0,90714.0,0.0008562]
[1731825981252,1.13690373,90715.0,90714.0,0.0008562]
[1731825981476,1.30946595,90715.0,90714.0,2e-07]
[1731825981688,1.06125362,90715.0,90714.0,2e-07]
[1731825982186,1.51851957,90715.0,90714.0,2e-07]
[1731825982405,1.72511717,90715.0,90714.0,2e-07]
[1731825982642,1.16231617,90715.0,90714.0,2e-07]
[1731825982883,1.87784499,90715.0,90714.0,2e-07]
[1731825983311,1.68012028,90715.0,90714.0,2e-07]
[1731825983538,1.7687396,90715.0,90714.0,2e-07]
[1731825983769,1.57105773,90715.0,90714.0,2e-07]
[1731825984693,1.81811126,90715.0,90714.0,2e-07]
[1731825984985,1.57105773,90715.0,90714.0,2e-07]
[1731825985429,1.59425349,90715.0,90714.0,2e-07]
[1731825986081,0.110276,90681.0,90676.0,0.0017116]
[1731825986298,0.21933855,90681.0,90676.0,0.0017116]
[1731825987159,0.36573855,90681.0,90676.0,0.0017116]
[1731825987628,0.31933855,90681.0,90676.0,0.0017116]
[1731825992444,0.21933855,90681.0,90676.0,0.0017116]
[1731825993153,0.10906255,90681.0,90653.0,0.05604292]
[1731825993370,0.110293,90667.0,90662.0,0.16524829]
[1731825993590,0.10906255,90680.0,90663.0,0.00344676]
[1731825993806,0.110293,90668.0,90664.0,0.00344676]
[1731825994010,0.110292,90669.0,90665.0,0.00344676]
[1731825994221,0.110292,90669.0,90666.0,0.00344676]
[1731825994435,0.110292,90669.0,90667.0,0.00344676]
[1731825994659,0.16524829,90679.0,90655.0,0.00344676]
[1731825994885,0.110294,90667.0,90656.0,0.00344678]
[1731825995131,0.220583,90669.0,90657.0,0.00344678]
[1731825995345,0.110295,90666.0,90658.0,0.00344678]
[1731825995575,0.1103,90662.0,90659.0,0.00344678]
[1731825995789,0.1103,90662.0,90660.0,0.00344678]
[1731825995996,0.1103,90662.0,90661.0,0.00344678]
[1731825996800,0.110302,90660.0,90654.0,0.017]
[1731825997010,0.110302,90660.0,90655.0,0.003447]
[1731825997236,0.110297,90664.0,90656.0,0.003447]
[1731825997476,0.110302,90660.0,90657.0,0.003447]
[1731825997727,0.220599,90662.0,90654.0,0.017]
[1731825997939,0.110302,90660.0,90655.0,0.00344701]
[1731825998147,0.110302,90660.0,90656.0,0.00344701]
[1731825998356,0.110302,90660.0,90657.0,0.00344701]
[1731825998569,0.110302,90660.0,90654.0,0.017]
[1731825998570,0.110302,90660.0,90658.0,0.00344701]
[1731825998799,0.110302,90660.0,90659.0,0.00344701]
[1731826003705,0.0818,90668.0,90659.0,0.00344701]
[1731826003931,0.16524829,90668.0,90659.0,0.00344701]
[1731826004127,0.16524829,90668.0,90651.0,0.001712]
[1731826004128,0.16524829,90668.0,90660.0,0.00344701]
[1731826004340,0.110299,90663.0,90661.0,0.00344701]
[1731826004558,0.110299,90663.0,90662.0,0.00344701]
[1731826004790,0.110299,90663.0,90662.0,0.00344698]
[1731826009247,0.218391,90665.0,90662.0,0.00344698]
[1731826009471,0.110297,90664.0,90663.0,0.00344698]
[1731826010796,0.190597,90664.0,90663.0,0.00344698]
[1731826011222,0.40000226,90664.0,90663.0,0.00344698]
[1731826011431,0.33810526,90664.0,90660.0,0.0008571]
[1731826011678,0.158701,90661.0,90660.0,0.0008571]
[1731826011943,0.34806355,90661.0,90660.0,0.00430459]
[1731826012150,0.34806355,90661.0,90660.0,0.0008571]
[1731826012377,0.34006355,90661.0,90660.0,0.0008571]
[1731826017288,0.2223012,90667.0,90660.0,0.0008571]
[1731826017289,0.0017142,90667.0,90660.0,0.0008571]
[1731826017503,0.0017142,90667.0,90661.0,0.00344751]
[1731826017710,0.0017142,90667.0,90662.0,0.00344751]
[1731826017927,0.0017142,90667.0,90663.0,0.00344751]
[1731826018165,0.0017142,90667.0,90663.0,0.00740094]
[1731826018433,0.0017142,90667.0,90664.0,0.00740057]
[1731826018632,0.0017142,90667.0,90665.0,0.00344751]
[1731826018840,0.0017142,90667.0,90666.0,0.00344751]
[1731826019068,0.0017142,90667.0,90660.0,0.14632519]
[1731826019283,0.0017142,90667.0,90661.0,0.11374668]
[1731826019497,0.0017142,90667.0,90662.0,0.00344668]
[1731826019728,0.0017142,90667.0,90663.0,0.00344668]
[1731826019946,0.0017142,90667.0,90664.0,0.00344668]
[1731826020160,0.0017142,90667.0,90665.0,0.00344668]
[1731826020376,0.0017142,90667.0,90666.0,0.00344668]
[1731826020591,0.0017142,90667.0,90666.0,0.00740552]
[1731826021280,0.1120072,90667.0,90666.0,0.00740552]
[1731826021511,0.1120072,90667.0,90666.0,0.00344668]
[1731826021980,0.1923072,90667.0,90666.0,0.00344668]
[1731826022212,0.30136975,90667.0,90666.0,0.00344668]
[1731826022638,0.30136975,90667.0,90660.0,0.0008571]
[1731826022639,0.110301,90661.0,90660.0,0.0008571]
[1731826022846,0.110301,90661.0,90660.0,0.00430432]
[1731826023082,0.21936355,90661.0,90660.0,0.0043044]
[1731826023340,0.21936355,90661.0,90660.0,0.00430443]
[1731826023843,0.21936355,90661.0,90660.0,0.0008571]
[1731826027469,0.21136355,90661.0,90660.0,0.0008571]
[1731826030082,0.102301,90661.0,90660.0,0.0008571]
[1731826030563,0.0820142,90667.0,90660.0,0.0008571]
[1731826030803,0.10906255,90666.0,90660.0,0.0008571]
[1731826031040,0.10906255,90666.0,90661.0,0.00393541]
[1731826031324,0.0017142,90667.0,90660.0,0.0008571]
[1731826031770,0.0017142,90667.0,90661.0,0.00344697]
[1731826031997,0.0017142,90667.0,90662.0,0.00344697]
[1731826032236,0.0017142,90667.0,90663.0,0.00344697]
[1731826032487,0.0017142,90667.0,90664.0,0.22403897]
[1731826032730,0.0017142,90667.0,90666.0,0.133294]
[1731826032973,0.0017142,90667.0,90666.0,0.13674097]
[1731826033203,0.0017142,90667.0,90666.0,0.14067272]
[1731826033438,0.0017142,90667.0,90666.0,0.13722575]
[1731826033671,0.0017142,90667.0,90666.0,0.03037831]
[1731826033902,0.0017142,90667.0,90666.0,0.14067231]
[1731826034606,0.0017142,90667.0,90666.0,0.00737831]
[1731826034827,0.0017142,90667.0,90666.0,0.11767231]
[1731826035324,0.0017142,90667.0,90666.0,0.14067231]
[1731826035573,0.0017142,90667.0,90666.0,0.14287802]
[1731826035791,0.0017142,90667.0,90666.0,0.14067231]
[1731826038660,0.0017142,90667.0,90666.0,0.13722575]
[1731826042197,0.15896249,90678.0,90671.0,0.110288]
[1731826042427,0.110275,90682.0,90671.0,0.110288]
[1731826042667,0.005,90697.0,90672.0,0.110286]
[1731826042668,0.04478212,90678.0,90672.0,0.110286]
[1731826042905,0.16524829,90680.0,90673.0,0.110285]
[1731826043148,0.220538,90687.0,90676.0,0.110282]
[1731826043149,0.11027,90687.0,90676.0,0.110282]
[1731826043354,0.110269,90688.0,90675.0,0.110283]
[1731826043597,0.110269,90688.0,90677.0,0.0039184]
[1731826043598,0.10906255,90688.0,90677.0,0.0039184]
[1731826043817,0.10906255,90688.0,90676.0,0.11420014]
[1731826044040,0.110271,90686.0,90678.0,0.0039184]
[1731826044270,0.110271,90686.0,90669.0,0.023]
[1731826044271,0.0008571,90680.0,90672.0,0.220575]
[1731826044487,0.0008571,90680.0,90675.0,0.110283]
[1731826044703,0.0008571,90680.0,90676.0,0.11372738]
[1731826044913,0.0008571,90680.0,90679.0,0.110279]
[1731826045373,0.0008571,90680.0,90679.0,0.11761109]
[1731826045599,0.13833283,90690.0,90680.0,0.220555]
[1731826045843,0.13833283,90690.0,90682.0,0.110274]
[1731826046070,0.13833283,90690.0,90683.0,0.00344638]
[1731826046282,0.13833283,90690.0,90684.0,0.00344638]
[1731826046504,0.13833283,90690.0,90683.0,0.00388856]
[1731826046758,0.0488,90690.0,90685.0,0.00733385]
[1731826046994,0.0488,90690.0,90680.0,0.220555]
[1731826046995,0.0488,90690.0,90686.0,0.00344604]
[1731826047221,0.0488,90690.0,90687.0,0.00344604]
[1731826047447,0.0488,90690.0,90688.0,0.00344604]
[1731826047672,0.0488,90690.0,90689.0,0.00344604]
[1731826047897,0.0488,90690.0,90689.0,0.00733506]
[1731826048347,0.159065,90690.0,90689.0,0.00344604]
[1731826048802,0.159065,90690.0,90679.0,0.110278]
[1731826049057,0.159065,90690.0,90689.0,0.00388902]
[1731826049346,0.159065,90690.0,90680.0,0.11372316]
[1731826049347,0.0488,90690.0,90680.0,0.110277]
[1731826049577,0.0488,90690.0,90681.0,0.00344613]
[1731826049809,0.0488,90690.0,90682.0,0.00344619]
[1731826050038,0.0488,90690.0,90683.0,0.00344619]
[1731826050277,0.0488,90690.0,90683.0,0.00389125]
[1731826050513,0.0488,90690.0,90684.0,0.00344616]
[1731826050743,0.0488,90690.0,90685.0,0.00344616]
[1731826050975,0.0488,90690.0,90686.0,0.00344616]
[1731826051225,0.0488,90690.0,90687.0,0.00344616]
[1731826051470,0.0488,90690.0,90688.0,0.00344616]
[1731826051710,0.0488,90690.0,90681.0,0.04452292]
[1731826051711,0.159066,90690.0,90681.0,0.04452292]
[1731826051973,0.110267,90689.0,90682.0,0.00344615]
[1731826052208,0.0488,90690.0,90683.0,0.00344615]
[1731826052436,0.0488,90690.0,90684.0,0.00344615]
[1731826052657,0.0488,90690.0,90680.0,0.110277]
[1731826052658,0.0488,90690.0,90685.0,0.00344615]
[1731826052924,0.0488,90690.0,90686.0,0.00344615]
[1731826053375,0.0488,90690.0,90687.0,0.00344615]
[1731826053604,0.0488,90690.0,90688.0,0.00344615]
[1731826053831,0.0488,90690.0,90678.0,0.11028]
[1731826054070,0.0488,90690.0,90689.0,0.00388902]
[1731826054307,0.0488,90690.0,90676.0,0.110282]
[1731826054558,0.110268,90688.0,90677.0,0.00344622]
[1731826054783,0.110268,90688.0,90678.0,0.00344622]
[1731826055033,0.0488,90690.0,90679.0,0.00344622]
[1731826055257,0.110268,90688.0,90680.0,0.00344622]
[1731826055489,0.110268,90688.0,90670.0,0.220578]
[1731826055756,0.110268,90688.0,90671.0,0.22609098]
[1731826055983,0.110268,90688.0,90674.0,0.110285]
[1731826056222,0.110268,90688.0,90675.0,0.110283]
[1731826056453,0.0496571,90690.0,90675.0,0.110283]
[1731826056454,0.0496571,90690.0,90675.0,0.00939975]
[1731826056683,0.0496571,90690.0,90675.0,0.00388581]
[1731826056911,0.110269,90687.0,90675.0,0.00388581]
[1731826057378,0.110268,90688.0,90675.0,0.00388581]
[1731826057798,0.110269,90687.0,90675.0,0.00388581]
[1731826058250,0.110268,90688.0,90675.0,0.00388581]
[1731826058676,0.110269,90687.0,90675.0,0.00388581]
[1731826059823,0.11027,90687.0,90675.0,0.00388581]
[1731826060045,0.11027,90687.0,90671.0,0.220577]
[1731826060290,0.0496571,90690.0,90676.0,0.00388642]
[1731826060291,0.11027,90686.0,90676.0,0.00388642]
[1731826060521,0.185772,90685.0,90669.0,0.220581]
[1731826060751,0.08565329,90687.0,90672.0,0.110286]
[1731826060958,0.110267,90689.0,90675.0,0.110283]
[1731826061205,0.110273,90684.0,90673.0,0.00388753]
[1731826061442,0.220536,90688.0,90676.0,0.00388716]
[1731826061684,0.220533,90689.0,90669.0,0.11029]
[1731826061897,0.110274,90684.0,90669.0,0.11029]
[1731826062292,0.110274,90684.0,90670.0,0.11417937]
[1731826062294,0.110274,90684.0,90670.0,0.00389037]
[1731826062295,0.220547,90684.0,90670.0,0.00389037]
[1731826062511,0.11028,90679.0,90670.0,0.00389037]
[1731826062722,0.110277,90681.0,90666.0,0.110294]
[1731826062946,0.110278,90680.0,90666.0,0.110294]
[1731826063147,0.110278,90680.0,90667.0,0.00388902]
[1731826063504,0.22055,90682.0,90667.0,0.00388902]
[1731826063505,0.110279,90679.0,90667.0,0.00388902]
[1731826063708,0.0755,90678.0,90667.0,0.00388902]
[1731826064363,0.110281,90677.0,90667.0,0.00388902]
[1731826064798,0.110281,90677.0,90663.0,0.30884705]
[1731826065005,0.110281,90677.0,90668.0,0.0038851]
[1731826065223,0.0755,90678.0,90668.0,0.0038851]
[1731826065433,0.0755,90678.0,90665.0,0.110295]
[1731826065648,0.0755,90678.0,90669.0,0.00388864]
[1731826065874,0.0755,90678.0,90666.0,0.110294]
[1731826066130,0.0755,90678.0,90670.0,0.00388864]
[1731826066356,0.0755,90678.0,90666.0,0.110294]
[1731826066806,0.18578,90678.0,90667.0,0.00388975]
[1731826067033,0.18578,90678.0,90668.0,0.1002997]
[1731826067252,0.18578,90678.0,90668.0,0.10418908]
[1731826067426,0.0755,90678.0,90668.0,0.10418908]
[1731826067688,0.0755,90678.0,90669.0,0.00344642]
[1731826068114,0.0755,90678.0,90670.0,0.00733506]
[1731826068313,0.0755,90678.0,90671.0,0.00344642]
[1731826068522,0.0755,90678.0,90672.0,0.00344642]
[1731826068780,0.0755,90678.0,90670.0,0.00560244]
[1731826068781,0.0755,90678.0,90676.0,0.1002997]
[1731826068986,0.0464,90683.0,90677.0,0.00344642]
[1731826069196,0.0464,90683.0,90681.0,0.1002997]
[1731826069678,0.0464,90683.0,90682.0,0.00344642]
[1731826069938,0.0464,90683.0,90682.0,0.03506973]
[1731826070159,0.0464,90683.0,90682.0,0.04447747]
[1731826071264,0.0464,90683.0,90682.0,0.04058374]
[1731826071467,0.0464,90683.0,90682.0,0.04447882]
[1731826071684,0.0464,90683.0,90682.0,0.04058374]
[1731826071897,0.0464,90683.0,90682.0,0.04448017]
[1731826072332,0.0464,90683.0,90682.0,0.0444801]
[1731826072333,0.0384,90683.0,90682.0,0.0444801]
[1731826072521,0.0384,90683.0,90682.0,0.04058367]
[1731826072980,0.0384,90683.0,90675.0,0.04482197]
[1731826073184,0.0384,90683.0,90676.0,0.04058127]
[1731826073400,0.0384,90683.0,90677.0,0.04058127]
[1731826073613,0.0384,90683.0,90678.0,0.04058127]
[1731826073871,0.0384,90683.0,90679.0,0.04058127]
[1731826074107,0.0384,90683.0,90680.0,0.04058127]
[1731826074332,0.0384,90683.0,90681.0,0.04058127]
[1731826074577,0.0384,90683.0,90682.0,0.04058127]
[1731826075263,0.0384,90683.0,90682.0,0.044475]
[1731826076407,0.148674,90683.0,90682.0,0.04058095]
[1731826076852,0.0384,90683.0,90682.0,0.02112151]
[1731826077092,0.0384,90683.0,90682.0,0.04057871]
[1731826077317,0.0384,90683.0,90682.0,0.04057843]
[1731826077827,0.148674,90683.0,90682.0,0.02112054]
[1731826078508,0.33963655,90683.0,90682.0,0.00344615]
[1731826078968,0.43851393,90683.0,90682.0,0.00344615]
[1731826079187,0.110287,90672.0,90671.0,0.02497363]
[1731826079408,0.110288,90671.0,90670.0,0.0017138]
[1731826079891,0.239488,90672.0,90670.0,0.00516056]
[1731826080079,0.110288,90671.0,90670.0,0.00722868]
[1731826080335,0.110288,90671.0,90670.0,0.02283365]
[1731826080987,0.110288,90671.0,90670.0,0.04228761]
[1731826081858,0.110288,90671.0,90670.0,0.0017138]
[1731826082072,0.110288,90671.0,90670.0,0.04227534]
[1731826082550,0.1292,90672.0,90670.0,0.04227534]
[1731826082772,0.239487,90672.0,90671.0,0.04056154]
[1731826083204,0.239487,90672.0,90671.0,0.04056121]
[1731826085688,0.1292,90672.0,90663.0,0.01943471]
[1731826085910,0.11029,90670.0,90657.0,0.27555329]
[1731826086357,0.11029,90670.0,90658.0,0.00392451]
[1731826087006,0.1292,90672.0,90658.0,0.00392451]
[1731826087225,0.102291,90670.0,90658.0,0.00392451]
[1731826087462,0.1292,90672.0,90660.0,0.15280774]
[1731826087790,0.1292,90672.0,90661.0,0.22280777]
[1731826087993,0.1292,90672.0,90666.0,0.110294]
[1731826088497,0.1292,90672.0,90667.0,0.00392303]
[1731826088739,0.21154829,90680.0,90668.0,0.110292]
[1731826088975,0.21154829,90680.0,90669.0,0.11029]
[1731826089211,0.21154829,90680.0,90670.0,0.110289]
[1731826089424,0.21154829,90680.0,90670.0,0.00392489]
[1731826089647,0.21154829,90680.0,90670.0,0.11421489]
[1731826089879,0.21154829,90680.0,90671.0,0.00392451]
[1731826092029,0.21154829,90680.0,90670.0,0.04560436]
[1731826092304,0.21154829,90680.0,90672.0,0.00392414]
[1731826092532,0.32182629,90680.0,90669.0,0.11029]
[1731826092789,0.21154829,90680.0,90673.0,0.00392377]
[1731826093011,0.21154829,90680.0,90666.0,0.110294]
[1731826093251,0.32182629,90680.0,90674.0,0.0039234]
[1731826093503,0.21154829,90680.0,90674.0,0.0039234]
[1731826093713,0.21154829,90680.0,90669.0,0.1120048]
[1731826094012,0.110285,90674.0,90669.0,0.0017138]
[1731826094277,0.32061084,90680.0,90669.0,0.0017138]
[1731826094278,0.15536255,90680.0,90670.0,0.00392489]
[1731826094526,0.19209,90670.0,90669.0,0.0017138]
[1731826095453,0.30115255,90670.0,90669.0,0.0017138]
[1731826095712,0.34745255,90670.0,90669.0,0.0017138]
[1731826097792,0.34745255,90670.0,90669.0,0.00516101]
[1731826098056,0.34745255,90670.0,90669.0,0.0017138]
[1731826101520,0.34745255,90670.0,90669.0,0.00516093]
[1731826101738,0.1281,90670.0,90669.0,0.00516093]
[1731826101954,0.23839,90670.0,90669.0,0.00516093]
[1731826102167,0.23039,90670.0,90669.0,0.00516093]
[1731826102868,0.23039,90670.0,90669.0,0.02270556]
[1731826104301,0.23039,90670.0,90669.0,0.01719008]
[1731826104777,0.23039,90670.0,90669.0,0.01718995]
[1731826105256,0.23039,90670.0,90669.0,0.0051608]
[1731826108199,0.33945255,90670.0,90669.0,0.0051608]
[1731826112074,0.33945255,90670.0,90669.0,0.0017138]
[1731826116119,0.34030885,90670.0,90669.0,0.0017138]
[1731826117265,0.33230885,90670.0,90669.0,0.0017138]
[1731826118169,0.33230885,90670.0,90669.0,0.00516091]
[1731826118899,0.0008563,90670.0,90669.0,0.00516091]
[1731826119146,0.1111463,90670.0,90669.0,0.00516091]
[1731826119392,0.1111463,90670.0,90669.0,0.02113571]
[1731826119604,0.1111463,90670.0,90669.0,0.01719287]
[1731826120736,0.1111463,90670.0,90669.0,0.01719737]
[1731826121374,0.1111463,90670.0,90669.0,0.02271259]
[1731826122978,0.1111463,90670.0,90669.0,0.04197211]
[1731826123262,0.1111463,90670.0,90669.0,0.02271259]
[1731826123946,0.1111463,90670.0,90669.0,0.01375036]
[1731826124160,0.1111463,90670.0,90669.0,0.02271185]
[1731826124865,0.0008563,90670.0,90669.0,0.02271185]
[1731826125334,0.0008563,90670.0,90669.0,0.04591751]
[1731826125559,0.0008563,90670.0,90669.0,0.04198597]
[1731826125974,0.0008563,90670.0,90669.0,0.04591751]
[1731826126211,0.0008563,90670.0,90669.0,0.15227697]
[1731826126456,0.0008563,90670.0,90669.0,0.15620851]
[1731826126699,0.0008563,90670.0,90669.0,0.20166407]
[1731826127185,0.0008563,90670.0,90669.0,0.20165464]
[1731826127444,0.16524829,90681.0,90671.0,0.110288]
[1731826127660,0.16524829,90681.0,90669.0,0.09136364]
[1731826127661,0.16524829,90681.0,90669.0,0.06006239]
[1731826127896,0.0008561,90683.0,90674.0,0.22057]
[1731826128134,0.0008561,90683.0,90676.0,0.220564]
[1731826128406,0.0008561,90683.0,90677.0,0.15452183]
[1731826128629,0.0008561,90683.0,90678.0,0.0402541]
[1731826128882,0.0008561,90683.0,90679.0,0.0402541]
[1731826129101,0.0008561,90683.0,90680.0,0.0402541]
[1731826129319,0.0008561,90683.0,90681.0,0.04423934]
[1731826129671,0.0008561,90683.0,90682.0,0.0402541]
[1731826130111,0.0008561,90683.0,90682.0,0.04423897]
[1731826130580,0.0008561,90683.0,90682.0,0.00398487]
[1731826130828,0.0008561,90683.0,90682.0,0.15448266]
[1731826131099,0.0008561,90683.0,90682.0,0.15049779]
[1731826131327,0.0008561,90683.0,90682.0,0.15444949]
[1731826132014,0.0008561,90683.0,90682.0,0.00373226]
[1731826132298,0.16524829,90691.0,90682.0,0.00373226]
[1731826132299,0.15981839,90691.0,90682.0,0.00373226]
[1731826132539,0.110267,90689.0,90679.0,0.110278]
[1731826132980,0.110267,90689.0,90680.0,0.00373522]
[1731826133201,0.15981839,90691.0,90680.0,0.11401222]
[1731826133935,0.15981839,90691.0,90680.0,0.00373522]
[1731826134149,0.15981839,90691.0,90680.0,0.11401222]
[1731826134389,0.110266,90690.0,90680.0,0.110277]
[1731826134626,0.110266,90690.0,90681.0,0.0037356]
[1731826134895,0.110264,90692.0,90681.0,0.1140106]
[1731826135115,0.110263,90692.0,90682.0,0.110274]
[1731826135366,0.0757,90693.0,90681.0,0.0037356]
[1731826135618,0.0757,90693.0,90685.0,0.110271]
[1731826135834,0.0496,90696.0,90685.0,0.110271]
[1731826135835,0.11026,90695.0,90685.0,0.110271]
[1731826136049,0.110262,90693.0,90686.0,0.00373415]
[1731826136290,0.26892155,90696.0,90686.0,0.11400415]
[1731826136538,0.26892155,90696.0,90686.0,0.11027]
[1731826136750,0.26892155,90696.0,90687.0,0.00371574]
[1731826136965,0.0496,90696.0,90687.0,0.00371574]
[1731826137212,0.159858,90696.0,90687.0,0.00371574]
[1731826137441,0.159858,90696.0,90686.0,0.11027]
[1731826137659,0.0496,90696.0,90688.0,0.00371536]
[1731826137872,0.0496,90696.0,90687.0,0.11398374]